Cogmind - Beta 13 @@@ ROGUE MODE // 2024.04.18 @ 19:16:11 Player: DeathByZer0 Result: Destroyed by G-34 Mercenary with Small Laser Performance ------------- Evolutions (0) 0 Regions Visited (1) 200 Robots Destroyed (18) 90 Value Destroyed (351) 351 Prototype IDs (0) 0 Alien Tech Used (0) 0 Bonus (0) 0 TOTAL SCORE: 641 Bonus ------- None Cogmind --------- Core Integrity 0/250 Matter 300/300 Energy 250/250 System Corruption 0% Temperature Cool (6) Movement Walking (120) Location -10/Materials Parts ------- > --- POWER (1) -------- Ion Engine > --- PROPULSION (2) --- Aluminum Leg Aluminum Leg > --- UTILITY (2) ------ Heat Sink Small Storage Unit > --- WEAPON (2) ------- Medium Laser > --- INVENTORY (8) ---- Ion Engine Aluminum Leg Aluminum Leg Medium Matter Pod (100) Signal Interpreter Signal Interpreter Small Laser Light Assault Rifle Peak State ------------ > --- POWER ------------ Ion Engine > --- PROPULSION ------- Light Treads Light Treads > --- UTILITY ---------- Small Storage Unit Transport Network Coupler > --- WEAPON ----------- Medium Laser Medium Laser > --- INVENTORY -------- Ion Engine Aluminum Leg Aluminum Leg Light Assault Rifle [Rating: 7] Favorites ----------- Power Ion Engine Engine Ion Engine Propulsion Light Treads Treads Light Treads Leg Aluminum Leg Utility Small Storage Unit Device Heat Sink Storage Small Storage Unit Processor Transport Network Coupler Protection Light Armor Plating Weapon Medium Laser Energy Gun Medium Laser Ballistic Cannon Light Cannon Build | -11 -10 ------- Run | Yrd Mat Slots Evolved . | . . Power . | . . Propulsion . | . . Utility . | . . Weapon . | . . Parts Attached 22 | 6 16 Power 4 | 1 3 Engine 4 | 1 3 Core . | . . Reactor . | . . Propulsion 5 | 2 3 Treads 2 | 2 . Leg 3 | . 3 Wheel . | . . Hover . | . . Flight . | . . Utility 7 | 1 6 Device 2 | . 2 Storage 3 | 1 2 Processor 1 | . 1 Hackware . | . . Protection 1 | . 1 Artifact . | . . Weapon 6 | 2 4 Energy Gun 5 | 2 3 Energy Cannon . | . . Ballistic Gun . | . . Ballistic Cannon 1 | . 1 Launcher . | . . Special Weapon . | . . Impact Weapon . | . . Slashing Weapon . | . . Piercing Weapon . | . . Special Melee Weapon . | . . Unidentified Prototypes . | . . Parts Lost 7 | . 7 Power 1 | . 1 Propulsion 3 | . 3 Utility 1 | . 1 Weapon 2 | . 2 Highest Loss Streak 5 | . 5 To Critical Strikes . | . . Average Slot Usage (%) 95 | . 95 Engine 13 | . 13 Treads 21 | . 21 Leg 4 | . 4 Device 1 | . 1 Storage 14 | . 14 Processor 4 | . 4 Protection 7 | . 7 Energy Gun 19 | . 19 Ballistic Cannon 7 | . 7 Naked Turns . | . . Heaviest Build 53 | 14 53 Greatest Support 40 | 40 40 Greatest Overweight (x) 1 | . 1 Average Overweight (x) . | . . Largest Inventory Capacity 20 | 8 20 Average Capacity 8 | 7 8 Most Carried 9 | 5 9 Average Carried 6 | 3 6 Final Capacity 8 | 8 8 Final Carried 8 | 4 8 Class Distribution -------------------- 100% | Mutant Dominant Class ---------------- Mutant | -10/Materials Resources | -11 -10 ----------- Run | Yrd Mat Matter Collected 634 | 260 374 Remotely . | . . Salvage Created 452 | 65 387 Parts 30 | 3 27 Haulers Intercepted . | . . Recyclers Shooed 1 | . 1 Parts Field Recycled . | . . Retrieved Matter . | . . Parts Self-Destructed . | . . Prevented . | . . Kills | -11 -10 ------- Run | Yrd Mat Combat Hostiles Destroyed 15 | . 15 Guns 8 | . 8 Cannons 7 | . 7 Classes Destroyed 5 | 1 4 Worker 1 | . 1 Recycler 1 | 1 . Watcher 1 | . 1 Swarmer 8 | . 8 Grunt 7 | . 7 Best Kill Streak 5 | 1 5 Combat Bots Only 4 | . 4 Max Kills in Single Turn 1 | 1 1 Gunslinging . | . . Exploded . | . . Melee . | . . Uniques/NPCs Destroyed . | . . Combat | -11 -10 -------- Run | Yrd Mat Hostile Shots Fired 149 | . 149 Missed 30 | . 30 Damage Taken 1188 | . 1188 Core 261 | . 261 Absorbed by Shields . | . . Core Remaining (%) 100 | 100 . Volleys Fired 61 | 1 60 Largest 2 | 2 2 Hottest 100 | 100 100 Shots Fired 111 | 2 109 Gun 75 | 2 73 Cannon 36 | . 36 Launcher . | . . Special . | . . Kinetic 36 | . 36 Thermal 75 | 2 73 Explosive . | . . Electromagnetic . | . . Robot Hit Streak 10 | 2 10 Robot Miss Streak 5 | . 5 Penetration Max . | . . Secondary Targets 2 | . 2 Max Gunslinging Chain 1 | . 1 Shots Hit Robots 62 | 2 60 Core Hits 27 | 2 25 Critical Kills . | . . Critical Parts Destroyed . | . . Critical Strikes 3 | . 3 Burn 3 | . 3 Melee Attacks . | . . Impact . | . . Slashing . | . . Piercing . | . . Sneak Attacks . | . . Combat Hostiles . | . . Follow-up Attacks . | . . Damage Inflicted 920 | 24 896 Guns 577 | 24 553 Cannons 339 | . 339 Explosions . | . . Melee . | . . Ramming 4 | . 4 Kinetic 339 | . 339 Thermal 577 | 24 553 Explosive . | . . Electromagnetic . | . . Impact . | . . Slashing . | . . Piercing . | . . Highest Corruption . | . . Average Corruption . | . . Corruption Purged . | . . Corruption Blocked . | . . Overload Shots . | . . Overflow Damage . | . . Projectiles . | . . Explosions . | . . Melee . | . . Knockbacks 6 | . 6 Impact . | . . Kinetic 6 | . 6 Secondary . | . . Self-Inflicted Damage . | . . Shots . | . . Rammed . | . . Targets Rammed 2 | . 2 Kicked 2 | . 2 Crushed . | . . Highest Temperature 409 | 39 409 Average Temperature 160 | 20 163 Received Heat Transfer 468 | . 468 Effects 5 | . 5 Energy Bleed 2 | . 2 Interference 1 | . 1 Damage (minor) 2 | . 2 Siege Activations . | . . Robots Corrupted . | . . Combat Hostiles . | . . Parts Fried . | . . Impact Corruptions . | . . Robots Melted . | . . Combat Hostiles . | . . Parts Melted 4 | . 4 Heat Transferred 1924 | 74 1850 Parts Sabotaged . | . . Parts Stolen . | . . Parts Stripped . | . . Power Chain Reactions . | . . Alert | -11 -10 ------- Run | Yrd Mat Peak Influence 208 | 5 208 Initial 3 | . 3 Average 68 | 2 74 Maximum Alert Level 1 | . 1 Low Security (%) 96 | 100 96 Level 1 3 | . 3 Level 2 . | . . Level 3 . | . . Level 4 . | . . Level 5 . | . . High Security . | . . Max Security . | . . Squads Dispatched 4 | . 4 Investigation 1 | . 1 Extermination . | . . Reinforcement 3 | . 3 Assault . | . . Garrison . | . . Intercept . | . . Searches Triggered . | . . Construction Impeded . | . . Haulers Reinforced . | . . Active Scanning Responses . | . . Cargo Convoy Interrupts . | . . Stealth | -11 -10 --------- Run | Yrd Mat Distress Signals 2 | . 2 Communications Jammed . | . . Distress Signals . | . . Times Spotted 25 | . 25 Peak Tracking Total 6 | . 6 Tactical Retreats . | . . Traps | -11 -10 ------- Run | Yrd Mat Traps Triggered 1 | . 1 Indirectly . | . . Trap Hack Attempts . | . . Triggered . | . . Disarmed . | . . Reprogrammed . | . . Reused . | . . Traps Extracted . | . . Installed . | . . Triggered . | . . Machines | -11 -10 ---------- Run | Yrd Mat Machines Disabled 1 | . 1 Max in Single Turn 1 | . 1 Machines Repaired . | . . Machines Dismantled . | . . Machines Sabotaged . | . . Overloaded Fab Kills . | . . Hacking | -11 -10 --------- Run | Yrd Mat Machines Accessed 5 | . 5 Terminals 2 | . 2 Fabricators . | . . Repair Stations 1 | . 1 Recycling Units 2 | . 2 Scanalyzers . | . . Garrison Access . | . . Total Hacks 11 | . 11 Successful 6 | . 6 Failed 5 | . 5 Catastrophic 3 | . 3 Database Lockouts . | . . Manual . | . . Terminals 6 | . 6 Fabricators . | . . Repair Stations 2 | . 2 Recycling Units 3 | . 3 Scanalyzers . | . . Garrison Access . | . . Terminal Hacks 4 | . 4 Record 1 | . 1 Alert Level 1 | . 1 Surveillance Status 1 | . 1 Zone Layout 1 | . 1 Fabricator Hacks . | . . Repair Station Hacks . | . . Recycling Unit Hacks 2 | . 2 Report Inventory 1 | . 1 Retrieve Components 1 | . 1 Scanalyzer . | . . Garrison Access Hacks . | . . Unauthorized Hacks . | . . Terminals . | . . Fabricators . | . . Repair Stations . | . . Recycling Units . | . . Scanalyzers . | . . Garrison Access . | . . Data Cores Recovered . | . . Used . | . . Hacking Detections 4 | . 4 Full Trace Events 1 | . 1 Feedback Events . | . . Feedback Blocked . | . . Robot Schematics Acquired . | . . Robots Built . | . . Authchips . | . . Time . | . . Total Robot Build Rating . | . . Part Schematics Acquired . | . . Parts Built . | . . Authchips . | . . Time . | . . Total Part Build Rating . | . . Parts Repaired . | . . Time . | . . Parts Recycled . | . . Recycled Matter . | . . Retrieved Matter . | . . Retrieved Components 3 | . 3 Parts Scanalyzed . | . . Part Schematics Acquired . | . . Parts Damaged . | . . Bothacking | -11 -10 ------------ Run | Yrd Mat Used RIF Installer . | . . Robots Hacked . | . . Non-combat . | . . Combat . | . . Robot Hacks Applied . | . . Relay Couplers Released . | . . Fabnet Peak Effective % . | . . Robots Rewired . | . . Allies Hacked . | . . Hacks Repelled . | . . Allies | -11 -10 -------- Run | Yrd Mat Total Allies . | . . Largest Group . | . . Highest-Rated Group . | . . Highest-Rated Ally . | . . Total Orders . | . . Ally Attacks . | . . Total Damage . | . . Kills . | . . Allies Corrupted . | . . Allies Melted . | . . Intel | -11 -10 ------- Run | Yrd Mat Robot Analysis Total . | . . Derelict Logs Recovered . | . . Drone Launches . | . . Drone Recoveries . | . . Exploration | -11 -10 ------------- Run | Yrd Mat Turns Passed 936 | 82 854 Spaces Moved 427 | 53 374 Core 18 | 18 . Treads 350 | 35 315 Legs 59 | . 59 Wheels . | . . Hover . | . . Flight . | . . Fastest Speed 50 | 50 120 Average Speed 150 | 122 154 Slowest Speed 240 | 160 240 Overloaded Moves . | . . Propulsion Burnouts . | . . Robots Hopped . | . . Cave-ins Triggered . | . . Exploration Rate (%) 37 | 4 71 Regions Visited 1 Branch Regions . Pre-discovered Areas . | . . Known Exits Taken . | . . Unknown Exits Taken 1 | 1 . Scrap Searched . | . . Spaces Dug . | . . Terrain Destroyed . | . . Melee . | . . Projectile . | . . AOE . | . . Terrain Rammed . | . . Walls Destroyed . | . . Machines Disabled . | . . Actions | -11 -10 --------- Run | Yrd Mat Total 610 | 67 543 Wait 65 | . 65 Move 426 | 52 374 Hop . | . . Pick Up 25 | 8 17 Fast Attach 4 | 2 2 Attach 13 | 4 9 Detach . | . . Swap 5 | . 5 Drop 9 | . 9 Fire 61 | 1 60 Melee . | . . Ram . | . . Kick 2 | . 2 Crush . | . . Escape Stasis . | . . Rewire . | . . Trap . | . . Miscellaneous . | . . Route ------- -11/Scrapyard -10/Materials (discovered 3 exits: [*Mat x2] / [*Min]) History --------- Turn | Location | Event 7 | -11/Scrapyard | Discovered new exit (range 16) 83 | -11/Scrapyard | Entered Materials 287 | -10/Materials | Discovered new exit (range 8) 300 | -10/Materials | Build established: Mutant 433 | -10/Materials | Discovered new exit (range 15) 813 | -10/Materials | Core integrity fell below 50% 834 | -10/Materials | Core integrity fell below 20% 870 | -10/Materials | Lost 5 parts (1p2n1u1w) 931 | -10/Materials | Discovered new exit (range 14) 937 | -10/Materials | Destroyed by G-34 Mercenary with Small Laser Last Messages --------------- 00866_ Acquired Sml. Laser. 00870_ Acquired Aluminum Leg. 00874_ Acquired Ion Engine. 00875_ Acquired 10 matter. 00878_ Dropped Heat Sink. 00879_ K-01 Serf collects debris. 00879_ Acquired 38 matter. 00880_ Acquired 12 matter. 00883_ K-01 Serf collects debris. 00883_ Kicked K-01 Serf. 00889_ Dropped Ion Engine. 00890_ Acquired 10 matter. 00902_ K-01 Serf cleans the Neutrino Reactor. 00909_ Med. Laser destroyed. 00924_ Connecting with Terminal... >>Layout(Zone) Retrieving Zone 6S layout... Downloaded map data. 00925_ K-01 Serf cleans the Hadron Collector. 00931_ EXIT=FOUND Map ----- +----------------------------------------------------+ | """ """ """ """ ## !" # #??????????? | | """ """ """ """ ## %%%*# #??????????? | | ######+### %###########? | | % """"" | | """ """ """ """ % ^ ""T"" | | """ """ """ """ | | """ """ """ """ ######## ## | | ########+## ^ | | # # | | #+### # """ "" # ^ | | ????? # """ """ # | | ????? # """ R" # | | ????? # """ # | | ??????? + = ######### | | ????????############ ##############????# !! | | ???????????## T # # #????#? !! | | ???????????## + # ! """" #????#? | | ???????????## #g + """" #????#?? | | ???????????## # # "T" """" #????#?? | | ???????????## # g# """ #????#??? | | ???????????## """ # ##############????#??? | | ???????????## """ # #????????????#????"" | | | ????????????# """ + #????????????#????"? | | ????????????# # #????????????#???????? | | ????????????# """ # #????????????#???????? | | ????#######?# """ # @ #????????????#???????? | | ##### #?# """ + #???????????##???????? | | #?# # #### #???????????# ???????? | | #?######## #??# #???????????# ???????? | | #????????# #??# #???????????# ???????? | | ##### #????????# #??# #???????????# ???????? | | ###### ##?????#### #??# #???????????# ???????? | | # #??????# #??# #???????????# ???????? | | + #??????# #??# #???????????# ???????? | | # #????????? ????? < #????????????????????? | | # #??????????????? #????????????????????? | | #####???????????????####????????????????????? | | #???????????????????????????????????????????? | | #???????????????????????????????????????????? | | #???????????????????????????????????????????? | | ######???????????????????????????????????????????? | | ?????????????????????????????????????????????????? | | | | | | | | | | | | | | | | | +----------------------------------------------------+ Best States ------------- Heat Dissipation 35 Energy Generation 10 Energy Capacity 250 Matter Stores 300 Matter Capacity 300 Sight Range 16 Terrain Scan Density 10 Armor Coverage 150 Evasion (%) 55 Recoil Reduction 2 Item Schematics ----------------- None Robot Schematics ------------------ None Fabricated ------------ Nothing Alien Tech Used ----------------- None Achievements -------------- None Challenges ------------ None Game ------ Seed AdvancedHypercooledPlatform Manual? 0 Play Time 00:15:53 Cumulative 7.1 hours Start 2024.04.17 @ 22:10:48 End 2024.04.18 @ 19:16:11 Sessions 3 Manual Loads 0 Difficulty Rogue Special Mode None Game No. 7 Rogue 7 Adventurer 0 Explorer 0 Win Type - Total 0 Types 0/0/0/0/0/0/0/0/0 Lore% 6 Gallery% 9 Achievement% 11 Wizard Run 0 Options --------- Layout 1 ASCII 0 Keyboard 0 Movement Mouse Keybinds 0 Fullscreen 2 Font 32/SmallcapsGlow Map View 50x35 Zoom Use 0% Tactical HUD 1 Map Filters NONE Filters NONE Steam 1 RUN: 6bfae12f-f472-43fc-9ebd-6647e5669a54